fUSD/lending_fUSD_20240114
["ID","MTS","AMOUNT","RATE_DAILY","PERIOD"]
[311584372,1705254662251,-670.56,0.0003041,2]
[311584373,1705254662261,-323.88590034,0.0003041,2]
[311584374,1705254662270,-500.0,0.0003041,2]
[311584375,1705254662279,-1006.82,0.0003041,2]
[311584376,1705254662288,-1556.76,0.0003041,2]
[311584377,1705254662298,-644.61,0.0003041,2]
[311584378,1705254662307,-500.0,0.0003041,2]
[311584379,1705254662316,-693.93,0.0003041,2]
[311584380,1705254662325,-500.0,0.0003041,2]
[311584381,1705254662335,-500.0,0.0003041,2]
[311584382,1705254662344,-863.23,0.0003041,2]
[311584383,1705254662353,-1345.3,0.0003041,2]
[311584384,1705254662364,-979.22,0.0003041,2]
[311584385,1705254662373,-500.0,0.0003041,2]
[311584386,1705254662383,-500.0,0.0003041,2]
[311584387,1705254662392,-1093.2,0.0003041,2]
[311584388,1705254662401,-500.0,0.0003041,2]
[311584389,1705254662411,-1230.76,0.0003041,2]
[311584390,1705254662420,-582.59,0.0003041,2]
[311584391,1705254662430,-500.0,0.0003041,2]
[311584392,1705254662439,-500.0,0.0003041,2]
[311584393,1705254662448,-1047.0,0.0003041,2]
[311584394,1705254662457,-7358.68,0.0003041,2]
[311584395,1705254662467,-500.0,0.0003041,2]
[311584396,1705254662475,-1416.84,0.0003041,2]
[311584397,1705254662484,-817.18,0.0003041,2]
[311584398,1705254662493,-500.0,0.0003041,2]
[311584399,1705254662503,-500.0,0.0003041,2]
[311584400,1705254662512,-905.22,0.0003041,2]
[311584401,1705254662521,-500.0,0.0003041,2]
[311584402,1705254662530,-2225.84,0.0003041,2]
[311584403,1705254662539,-1065.28,0.0003041,2]
[311584404,1705254662548,-500.0,0.0003041,2]
[311584405,1705254662558,-1555.59,0.0003041,2]
[311584406,1705254662566,-959.87,0.0003041,2]
[311584407,1705254662576,-500.0,0.0003041,2]
[311584408,1705254662585,-643.05,0.0003041,2]
[311584409,1705254662594,-1807.93,0.0003041,2]
[311584410,1705254662602,-2257.62,0.0003041,2]
[311584411,1705254662612,-500.0,0.0003041,2]
[311584412,1705254662621,-1129.54,0.0003041,2]
[311584413,1705254662630,-500.0,0.0003041,2]
[311584414,1705254662639,-959.3,0.0003041,2]
[311584415,1705254662648,-3252.88,0.0003041,2]
[311584416,1705254662658,-502.28,0.0003041,2]
[311584417,1705254662667,-1388.45,0.0003041,2]
[311584418,1705254662676,-2793.81,0.0003041,2]
[311584419,1705254662685,-500.0,0.0003041,2]
[311584420,1705254662695,-505.17285914,0.0003041,2]
[311584421,1705254662704,-500.0,0.0003041,2]
[311584422,1705254662714,-1017.91,0.0003041,2]
[311584423,1705254662723,-874.99,0.0003041,2]
[311584424,1705254662733,-500.0,0.0003041,2]
[311584425,1705254662742,-500.0,0.0003041,2]
[311584426,1705254662752,-6280.95,0.0003041,2]
[311584427,1705254662761,-915.83,0.0003041,2]
[311584428,1705254662770,-1952.99,0.0003041,2]
[311584429,1705254662779,-676.52,0.0003041,2]
[311584430,1705254662788,-630.37,0.0003041,2]
[311584431,1705254662798,-3111.79,0.0003041,2]
[311584432,1705254662807,-500.0,0.0003041,2]
[311584433,1705254662816,-2353.93,0.0003041,2]
[311584434,1705254662826,-500.0,0.0003041,2]
[311584435,1705254662835,-500.0,0.0003041,2]
[311584436,1705254662844,-500.0,0.0003041,2]
[311584437,1705254662853,-500.0,0.0003041,2]
[311584438,1705254662863,-1027.37,0.0003041,2]
[311584439,1705254662872,-500.0,0.0003041,2]
[311584440,1705254662882,-500.0,0.0003041,2]
[311584441,1705254662893,-1411.48,0.0003041,2]
[311584442,1705254662902,-510.85443157,0.0003041,2]
[311584443,1705254662912,-500.0,0.0003041,2]
[311584444,1705254662922,-688.75,0.0003041,2]
[311584445,1705254662931,-974.58,0.0003041,2]
[311584446,1705254662940,-500.0,0.0003041,2]
[311584447,1705254662949,-500.0,0.0003041,2]
[311584448,1705254662959,-2751.81,0.0003041,2]
[311584449,1705254662968,-500.0,0.0003041,2]
[311584450,1705254662977,-500.0,0.0003041,2]
[311584451,1705254662986,-1119.46,0.0003041,2]
[311584452,1705254662995,-500.0,0.0003041,2]
[311584453,1705254663004,-4919.77,0.0003041,2]
[311584454,1705254663013,-678.6,0.0003041,2]
[311584455,1705254663022,-500.0,0.0003041,2]
[311584456,1705254663032,-500.0,0.0003041,2]
[311584457,1705254663044,-185.92,0.0003041,2]
[311584458,1705254663053,-1605.99,0.0003041,2]
[311584459,1705254663062,-2030.96,0.0003041,2]
[311584460,1705254663071,-6290.45,0.0003041,2]
[311584461,1705254663081,-524.15185101,0.0003041,2]
[311584462,1705254663090,-500.0,0.0003041,2]
[311584463,1705254663101,-4496.01,0.0003041,2]
[311584464,1705254663111,-747.52,0.0003041,2]
[311584465,1705254663121,-500.0,0.0003041,2]
[311584466,1705254663130,-2657.56,0.0003041,2]
[311584467,1705254663139,-635.11,0.0003041,2]
[311584468,1705254663148,-13749.45,0.0003041,2]
[311584469,1705254663157,-500.0,0.0003041,2]
[311584470,1705254663166,-13923.52,0.0003041,2]
[311584471,1705254663175,-1053.84,0.0003041,2]
[311584472,1705254663183,-500.0,0.0003041,2]
[311584473,1705254663192,-1086.88,0.0003041,2]
[311584474,1705254663201,-500.0,0.0003041,2]
[311584475,1705254663210,-500.0,0.0003041,2]
[311584476,1705254663219,-507.02,0.0003041,2]
[311584477,1705254663228,-512.92,0.0003041,2]
[311584478,1705254663237,-500.0,0.0003041,2]
[311584479,1705254663247,-546.97,0.0003041,2]
[311584480,1705254663256,-36935.37,0.0003041,2]
[311584481,1705254663265,-500.0,0.0003041,2]
[311584482,1705254663275,-644.75,0.0003041,2]
[311584483,1705254663284,-541.88,0.0003041,2]
[311584484,1705254663293,-762.58,0.0003041,2]
[311584485,1705254663302,-776.48,0.0003041,2]
[311584486,1705254663311,-5174.76,0.0003041,2]
[311584487,1705254663320,-4603.34,0.0003041,2]
[311584488,1705254663330,-500.0,0.0003041,2]
[311584489,1705254663339,-500.0,0.0003041,2]
[311584490,1705254663348,-1361.41,0.0003041,2]
[311584491,1705254663358,-18687.6,0.0003041,2]
[311584492,1705254663367,-551.34,0.0003041,2]
[311584493,1705254663376,-500.0,0.0003041,2]
[311584494,1705254663385,-500.0,0.0003041,2]
[311584495,1705254663394,-2606.26,0.0003041,2]
[311584496,1705254663403,-500.0,0.0003041,2]
[311584497,1705254663412,-1070.66,0.0003041,2]
[311584498,1705254663421,-538.37,0.0003041,2]
[311584499,1705254663430,-2734.88,0.0003041,2]
[311584500,1705254663440,-4925.51,0.0003041,2]
[311584501,1705254663450,-764.0,0.0003041,2]
[311584502,1705254663459,-500.0,0.0003041,2]
[311584503,1705254663468,-500.0,0.0003041,2]
[311584504,1705254663477,-500.0,0.0003041,2]
[311584505,1705254663486,-500.0,0.0003041,2]
[311584506,1705254663496,-500.0,0.0003041,2]
[311584507,1705254663506,-1765.44,0.0003041,2]
[311584508,1705254663515,-3076.14,0.0003041,2]
[311584509,1705254663524,-500.0,0.0003041,2]
[311584510,1705254663534,-1266.12,0.0003041,2]
[311584511,1705254663543,-500.0,0.0003041,2]
[311584512,1705254663553,-1792.67,0.0003041,2]
[311584513,1705254663562,-500.0,0.0003041,2]
[311584514,1705254663571,-500.0,0.0003041,2]
[311584515,1705254663580,-3926.07,0.0003041,2]
[311584516,1705254663589,-500.0,0.0003041,2]
[311584517,1705254663598,-1199.33,0.0003041,2]
[311584518,1705254663609,-519.94,0.0003041,2]
[311584519,1705254663618,-1261.09,0.0003041,2]
[311584520,1705254663627,-1000.0,0.0003041,2]
[311584521,1705254663636,-1408.57,0.0003041,2]
[311584522,1705254663645,-3536.73,0.0003041,2]
[311584523,1705254663654,-500.0,0.0003041,2]
[311584524,1705254663663,-12614.91,0.0003041,2]
[311584525,1705254663673,-500.0,0.0003041,2]
[311584526,1705254663682,-500.0,0.0003041,2]
[311584527,1705254663691,-5179.9,0.0003041,2]
[311584528,1705254663701,-2091.45,0.0003041,2]
[311584529,1705254663710,-7274.24,0.0003041,2]
[311584530,1705254663719,-500.0,0.0003041,2]
[311584531,1705254663728,-500.0,0.0003041,2]
[311584532,1705254663738,-500.0,0.0003041,2]
[311584533,1705254663747,-13931.34,0.0003041,2]
[311584534,1705254663756,-500.0,0.0003041,2]
[311584535,1705254663766,-500.0,0.0003041,2]
[311584536,1705254663777,-1104.21,0.0003041,2]
[311584537,1705254663787,-2085.5,0.0003041,2]
[311584538,1705254663796,-533.79,0.0003041,2]
[311584539,1705254663805,-1967.26,0.0003041,2]
[311584540,1705254663815,-500.0,0.0003041,2]
[311584541,1705254663825,-570.34,0.0003041,2]
[311584542,1705254663834,-500.0,0.0003041,2]
[311584543,1705254663844,-500.0,0.0003041,2]
[311584544,1705254663853,-500.0,0.0003041,2]
[311584545,1705254663862,-631.88,0.0003041,2]
[311584546,1705254663873,-652.34,0.0003041,2]
[311584547,1705254663882,-9424.33,0.0003041,2]
[311584548,1705254663892,-500.0,0.0003041,2]
[311584549,1705254663901,-682.32,0.0003041,2]
[311584550,1705254663911,-1840.74,0.0003041,2]
[311584551,1705254663921,-4246.44,0.0003041,2]
[311584552,1705254663931,-2261.49,0.0003041,2]
[311584553,1705254663941,-3633.65,0.0003041,2]
[311584554,1705254663951,-500.0,0.0003041,2]
[311584555,1705254663960,-890.95,0.0003041,2]
[311584556,1705254663970,-500.0,0.0003041,2]
[311584557,1705254663980,-500.0,0.0003041,2]
[311584558,1705254663989,-1873.09,0.0003041,2]
[311584559,1705254663998,-500.0,0.0003041,2]
[311584560,1705254664008,-1421.47,0.0003041,2]
[311584561,1705254664017,-500.0,0.0003041,2]
[311584562,1705254664026,-500.0,0.0003041,2]
[311584563,1705254664039,-500.0,0.0003041,2]
[311584564,1705254664048,-500.0,0.0003041,2]
[311584565,1705254664057,-2379.45,0.0003041,2]
[311584566,1705254664066,-800.68,0.0003041,2]
[311584567,1705254664076,-500.0,0.0003041,2]
[311584568,1705254664086,-500.0,0.0003041,2]
[311584569,1705254664095,-3777.35,0.0003041,2]
[311584570,1705254664105,-2348.65,0.0003041,2]
[311584571,1705254664115,-500.0,0.0003041,2]
[311584572,1705254664124,-6603.21,0.0003041,2]
[311584573,1705254664134,-1554.42,0.0003041,2]
[311584574,1705254664143,-1924.51,0.0003041,2]
[311584575,1705254664152,-1000.0,0.0003041,2]
[311584576,1705254664161,-1388.96,0.0003041,2]
[311584577,1705254664170,-500.0,0.0003041,2]
[311584578,1705254664179,-185.70046812,0.0003041,2]
[311584579,1705254664188,-869.37,0.0003041,2]
[311584580,1705254664197,-637.72,0.0003041,2]
[311584581,1705254664206,-705.91,0.0003041,2]
[311584582,1705254664215,-1802.01,0.0003041,2]
[311584583,1705254664223,-500.0,0.0003041,2]
[311584584,1705254664232,-500.0,0.0003041,2]
[311584585,1705254664242,-1005.76,0.0003041,2]
[311584586,1705254664251,-500.0,0.0003041,2]
[311584587,1705254664260,-1139.58,0.0003041,2]
[311584588,1705254664268,-2440.46,0.0003041,2]
[311584589,1705254664278,-500.0,0.0003041,2]
[311584590,1705254664287,-500.0,0.0003041,2]
[311584591,1705254664296,-729.88,0.0003041,2]
[311584592,1705254664305,-500.0,0.0003041,2]
[311584593,1705254664314,-1109.22,0.0003041,2]
[311584594,1705254664323,-9293.44,0.0003041,2]
[311584595,1705254664332,-500.0,0.0003041,2]
[311584596,1705254664341,-743.02,0.0003041,2]
[311584597,1705254664350,-586.01,0.0003041,2]
[311584598,1705254664360,-500.0,0.0003041,2]
[311584599,1705254664369,-500.0,0.0003041,2]
[311584600,1705254664378,-500.0,0.0003041,2]
[311584601,1705254664387,-500.0,0.0003041,2]
[311584602,1705254664396,-500.0,0.0003041,2]
[311584603,1705254664405,-1044.54,0.0003041,2]
[311584604,1705254664414,-1926.33,0.0003041,2]
[311584605,1705254664423,-500.0,0.0003041,2]
[311584606,1705254664431,-500.0,0.0003041,2]
[311584607,1705254664440,-1139.2,0.0003041,2]
[311584608,1705254664449,-1156.25,0.0003041,2]
[311584609,1705254664460,-471.76363396,0.0003041,2]
[311584610,1705254664471,-1448.68,0.0003041,2]
[311584611,1705254664480,-500.0,0.0003041,2]
[311584612,1705254664489,-500.0,0.0003041,2]
[311584613,1705254664498,-2397.76,0.0003041,2]
[311584614,1705254664507,-1351.67,0.0003041,2]
[311584615,1705254664516,-602.63,0.0003041,2]
[311584616,1705254664525,-1057.68,0.0003041,2]
[311584617,1705254664535,-500.0,0.0003041,2]
[311584618,1705254664544,-500.0,0.0003041,2]
[311584619,1705254664553,-8256.08,0.0003041,2]
[311584620,1705254664562,-500.0,0.0003041,2]
[311584621,1705254664571,-546.22,0.0003041,2]
[311584622,1705254664580,-1098.19,0.0003041,2]
[311584623,1705254664589,-731.42,0.0003041,2]
[311584624,1705254664598,-1277.19,0.0003041,2]
[311584625,1705254664609,-1941.84,0.0003041,2]
[311584626,1705254664618,-3928.23,0.0003041,2]
[311584627,1705254664627,-500.0,0.0003041,2]
[311584628,1705254664636,-500.0,0.0003041,2]
[311584629,1705254664645,-702.7,0.0003041,2]
[311584630,1705254664654,-500.0,0.0003041,2]
[311584631,1705254664663,-796.24,0.0003041,2]
[311584632,1705254664672,-581.79,0.0003041,2]
[311584633,1705254664682,-2073.52,0.0003041,2]
[311584634,1705254664691,-1945.66,0.0003041,2]
[311584635,1705254664700,-500.0,0.0003041,2]
[311584636,1705254664709,-2019.56,0.0003041,2]
[311584637,1705254664718,-500.0,0.0003041,2]
[311584638,1705254664727,-500.0,0.0003041,2]
[311584639,1705254664737,-1162.31,0.0003041,2]
[311584640,1705254664746,-744.39,0.0003041,2]
[311584641,1705254664754,-500.0,0.0003041,2]
[311584642,1705254664764,-500.0,0.0003041,2]
[311584643,1705254664773,-1628.56,0.0003041,2]
[311584644,1705254664782,-1757.85,0.0003041,2]
[311584645,1705254664791,-500.0,0.0003041,2]
[311584646,1705254664800,-621.65,0.0003041,2]
[311584647,1705254664810,-24669.86,0.0003041,2]
[311584648,1705254664819,-500.0,0.0003041,2]
[311584649,1705254664828,-500.0,0.0003041,2]
[311584650,1705254664837,-500.0,0.0003041,2]
[311584651,1705254664846,-500.0,0.0003041,2]
[311584652,1705254664856,-790.77,0.0003041,2]
[311584653,1705254664865,-448.42510414,0.0003041,2]
[311584654,1705254664874,-1131.11,0.0003041,2]
[311584655,1705254664884,-500.0,0.0003041,2]
[311584656,1705254664893,-500.0,0.0003041,2]
[311584657,1705254664902,-500.0,0.0003041,2]
[311584658,1705254664911,-546.85842296,0.0003041,2]
[311584659,1705254664921,-500.0,0.0003041,2]
[311584660,1705254664930,-2627.87,0.0003041,2]
[311584661,1705254664940,-500.0,0.0003041,2]
[311584662,1705254664950,-2431.74,0.0003041,2]
[311584663,1705254664959,-500.0,0.0003041,2]
[311584664,1705254664968,-500.0,0.0003041,2]
[311584665,1705254664977,-619.23,0.0003041,2]
[311584666,1705254664987,-500.0,0.0003041,2]
[311584667,1705254664996,-1398.37,0.0003041,2]
[311584668,1705254665005,-500.0,0.0003041,2]
[311584669,1705254665014,-500.0,0.0003041,2]
[311584670,1705254665024,-594.77863299,0.0003041,2]
[311584671,1705254665034,-635.27,0.0003041,2]
[311584672,1705254665044,-500.0,0.0003041,2]
[311584673,1705254665053,-2128.54,0.0003041,2]
[311584674,1705254665064,-546.4,0.0003041,2]
[311584675,1705254665074,-500.0,0.0003041,2]
[311584676,1705254665084,-500.0,0.0003041,2]
[311584677,1705254665094,-500.0,0.0003041,2]
[311584678,1705254665104,-730.39,0.0003041,2]
[311584679,1705254665114,-500.0,0.0003041,2]
[311584680,1705254665124,-746.79,0.0003041,2]
[311584681,1705254665134,-688.55,0.0003041,2]
[311584682,1705254665275,-1845.78,0.0003041,2]
[311584683,1705254665288,-500.0,0.0003041,2]
[311584684,1705254665297,-1353.58,0.0003041,2]
[311584685,1705254665307,-2456.1,0.0003041,2]
[311584686,1705254665317,-1751.67,0.0003041,2]
[311584687,1705254665328,-500.0,0.0003041,2]
[311584688,1705254665338,-958.1,0.0003041,2]
[311584689,1705254665348,-500.0,0.0003041,2]
[311584690,1705254665359,-977.67,0.0003041,2]
[311584691,1705254665369,-500.0,0.0003041,2]
[311584692,1705254665379,-1005.3,0.0003041,2]
[311584693,1705254665389,-500.0,0.0003041,2]
[311584694,1705254665399,-1100.07,0.0003041,2]
[311584695,1705254665409,-500.0,0.0003041,2]
[311584696,1705254665419,-517.59102707,0.0003041,2]
[311584697,1705254665430,-2038.82,0.0003041,2]
[311584698,1705254665439,-2725.4,0.0003041,2]
[311584699,1705254665449,-645.07,0.0003041,2]
[311584700,1705254665459,-500.0,0.0003041,2]
[311584701,1705254665468,-500.0,0.0003041,2]
[311584702,1705254665478,-4814.13,0.0003041,2]
[311584703,1705254665487,-1085.28,0.0003041,2]
[311584704,1705254665497,-500.0,0.0003041,2]
[311584705,1705254665507,-500.0,0.0003041,2]
[311584706,1705254665517,-1023.19,0.0003041,2]
[311584707,1705254665527,-938.38,0.0003041,2]
[311584708,1705254665537,-3050.06,0.0003041,2]
[311584709,1705254665546,-650.45,0.0003041,2]
[311584710,1705254665556,-500.0,0.0003041,2]
[311584711,1705254665566,-2866.89,0.0003041,2]
[311584712,1705254665576,-1098.42,0.0003041,2]
[311584713,1705254665585,-500.0,0.0003041,2]
[311584714,1705254665595,-500.0,0.0003041,2]
[311584715,1705254665605,-500.0,0.0003041,2]
[311584716,1705254665615,-991.95,0.0003041,2]
[311584717,1705254665624,-500.0,0.0003041,2]
[311584718,1705254665634,-5608.33,0.0003041,2]
[311584719,1705254665645,-245.50905791,0.0003041,2]
[311584720,1705254665655,-500.0,0.0003041,2]
[311584721,1705254665664,-633.07,0.0003041,2]
[311584722,1705254665674,-1002.42,0.0003041,2]
[311584723,1705254665683,-500.0,0.0003041,2]
[311584724,1705254665692,-500.0,0.0003041,2]
[311584725,1705254665702,-500.0,0.0003041,2]
[311584726,1705254665711,-6080.5,0.0003041,2]
[311584727,1705254665721,-500.0,0.0003041,2]
[311584728,1705254665730,-500.0,0.0003041,2]
[311584729,1705254665740,-1200.16,0.0003041,2]
[311584730,1705254665750,-1443.19,0.0003041,2]
[311584731,1705254665760,-4523.2,0.0003041,2]
[311584732,1705254665770,-500.0,0.0003041,2]
[311584733,1705254665779,-9121.86,0.0003041,2]
[311584734,1705254665790,-535.76,0.0003041,2]
[311584735,1705254665800,-1491.1,0.0003041,2]
[311584736,1705254665810,-372.48583696,0.0003041,2]
[311584737,1705254665819,-2410.62,0.0003041,2]
[311584738,1705254665830,-500.0,0.0003041,2]
[311584739,1705254665840,-500.0,0.0003041,2]
[311584740,1705254665850,-500.0,0.0003041,2]
[311584741,1705254665859,-500.0,0.0003041,2]
[311584742,1705254665869,-500.0,0.0003041,2]
[311584743,1705254665878,-5763.39,0.0003041,2]
[311584744,1705254665889,-1168.02,0.0003041,2]
[311584745,1705254665900,-500.0,0.0003041,2]
[311584746,1705254665909,-500.0,0.0003041,2]
[311584747,1705254665919,-602.72498837,0.0003041,2]
[311584748,1705254665929,-2824.58,0.0003041,2]
[311584749,1705254665939,-617.19,0.0003041,2]
[311584750,1705254665949,-500.0,0.0003041,2]
[311584751,1705254665959,-211.56415178,0.0003041,2]
[311584752,1705254665970,-1147.57,0.0003041,2]
[311584753,1705254665980,-19867.44,0.0003041,2]
[311584754,1705254665991,-5067.31,0.0003041,2]
[311584755,1705254666002,-1423.93,0.0003041,2]
[311584756,1705254666012,-822.98,0.0003041,2]
[311584757,1705254666022,-1153.35,0.0003041,2]
[311584758,1705254666034,-641.77,0.0003041,2]
[311584759,1705254666049,-3022.19,0.0003041,2]
[311584760,1705254666061,-500.0,0.0003041,2]
[311584761,1705254666070,-500.0,0.0003041,2]
[311584762,1705254666080,-612.74,0.0003041,2]
[311584763,1705254666091,-500.0,0.0003041,2]
[311584764,1705254666102,-835.25,0.0003041,2]
[311584765,1705254666112,-500.0,0.0003041,2]
[311584766,1705254666123,-1550.26,0.0003041,2]
[311584767,1705254666132,-893.14,0.0003041,2]
[311584768,1705254666142,-1761.40675176,0.00030427,5]
[311584769,1705254666151,-831.08,0.00030454,2]
[311584770,1705254666160,-1050.52164541,0.00030458,2]
[311584771,1705254666170,-160.29,0.00030565,2]
[311584772,1705254666179,-179.29,0.00030575,2]
[311584773,1705254666188,-831.08,0.00030605,2]
[311584774,1705254666198,-596.44,0.0003062,2]
[311584775,1705254666208,-1383.77,0.0003062,2]
[311584776,1705254666217,-500.0,0.00030682,2]
[311584777,1705254666227,-500.0,0.00030683,2]
[311584778,1705254666237,-500.0,0.00030684,2]
[311584779,1705254666246,-500.0,0.00030684,2]
[311584780,1705254666256,-580.06827572,0.00030684,2]
[311584781,1705254666265,-530.2311902,0.00030684,2]
[311584782,1705254666275,-500.0,0.00030684,2]
[311584783,1705254666284,-507.47111812,0.00030684,2]
[311584784,1705254666293,-500.0,0.00030684,2]
[311584785,1705254666302,-169.58868832,0.00030684,2]
[311584786,1705254666312,-270.24410361,0.00030684,2]
[311584787,1705254666321,-500.0,0.00030684,2]
[311584788,1705254666330,-500.0,0.00030684,2]
[311584789,1705254666340,-500.0,0.00030684,2]
[311584790,1705254666349,-500.0,0.00030684,2]
[311584791,1705254666359,-500.0,0.00030684,2]
[311584792,1705254666368,-500.0,0.00030684,2]
[311584793,1705254666378,-385.7889797,0.00030684,2]
[311584794,1705254666387,-500.0,0.00030684,2]
[311584795,1705254666396,-520.82,0.00030684,2]
[311584796,1705254666406,-500.0,0.00030684,2]
[311584797,1705254666415,-500.0,0.00030684,2]
[311584798,1705254666425,-500.0,0.00030684,2]
[311584799,1705254666435,-500.0,0.00030684,2]
[311584800,1705254666444,-500.0,0.00030684,2]
[311584801,1705254666454,-500.0,0.00030684,2]
[311584802,1705254666463,-500.0,0.00030684,2]
[311584803,1705254666473,-500.0,0.00030684,2]
[311584804,1705254666482,-653.52,0.00030684,2]
[311584805,1705254666492,-520.83,0.00030684,2]
[311584806,1705254666501,-500.0,0.00030684,2]
[311584807,1705254666511,-500.0,0.00030684,2]
[311584808,1705254666520,-500.0,0.00030684,2]
[311584809,1705254666530,-500.0,0.00030684,2]
[311584810,1705254666539,-569.22,0.00030684,2]
[311584811,1705254666548,-500.0,0.00030684,2]
[311584812,1705254666558,-500.0,0.00030684,2]
[311584813,1705254666567,-730.18,0.00030684,2]
[311584814,1705254666577,-500.0,0.00030684,2]
[311584815,1705254666586,-551.99099925,0.00030684,2]
[311584816,1705254666595,-500.0,0.00030684,2]
[311584817,1705254666605,-500.0,0.00030684,2]
[311584818,1705254666614,-500.0,0.00030684,2]
[311584819,1705254666623,-500.0,0.00030684,2]
[311584820,1705254666634,-550.0,0.00030684,2]
[311584821,1705254666669,-517.73,0.00030684,2]
[311584822,1705254666678,-500.0,0.00030684,2]
[311584823,1705254666688,-500.0,0.00030684,2]
[311584824,1705254666698,-500.0,0.00030684,2]
[311584825,1705254666708,-500.0,0.00030684,2]
[311584826,1705254666717,-500.0,0.00030684,2]
[311584827,1705254666727,-500.0,0.00030684,2]
[311584828,1705254666736,-643.63,0.00030684,2]
[311584829,1705254666745,-641.77616272,0.00030684,2]
[311584830,1705254666755,-500.0,0.00030684,2]
[311584831,1705254666765,-609.69,0.00030684,2]
[311584832,1705254666775,-500.0,0.00030684,2]
[311584833,1705254666784,-500.0,0.00030684,2]
[311584834,1705254666794,-500.0,0.00030684,2]
[311584835,1705254666804,-500.0,0.00030684,2]
[311584836,1705254666814,-500.0,0.00030684,2]
[311584837,1705254666823,-500.0,0.00030684,2]
[311584838,1705254666834,-500.0,0.00030684,2]
[311584839,1705254666844,-500.0,0.00030684,2]
[311584840,1705254666853,-500.0,0.00030684,2]
[311584841,1705254666863,-500.0,0.00030684,2]
[311584842,1705254666873,-500.97,0.00030684,2]
[311584843,1705254666882,-500.0,0.00030684,2]
[311584844,1705254666892,-952.85,0.00030684,2]
[311584845,1705254666904,-500.0,0.00030684,2]
[311584846,1705254666914,-500.0,0.00030684,2]
[311584847,1705254666925,-500.0,0.00030684,2]
[311584848,1705254666941,-500.0,0.00030684,2]
[311584849,1705254666951,-500.0,0.00030684,2]
[311584850,1705254666962,-1010.48,0.00030684,2]
[311584851,1705254666973,-500.0,0.00030684,2]
[311584852,1705254666982,-481.49050843,0.00030684,2]
[311584853,1705254666992,-500.0,0.00030684,2]
[311584854,1705254667002,-500.0,0.00030684,2]
[311584855,1705254667012,-542.19,0.00030684,2]
[311584856,1705254667022,-500.0,0.00030684,2]
[311584857,1705254667032,-500.0,0.00030684,2]
[311584858,1705254667050,-500.0,0.00030684,2]
[311584859,1705254667060,-500.0,0.00030684,2]
[311584860,1705254667069,-500.0,0.00030684,2]
[311584861,1705254667080,-500.0,0.00030684,2]
[311584862,1705254667089,-614.14,0.00030684,2]
[311584863,1705254667099,-500.0,0.00030684,2]
[311584864,1705254667111,-500.0,0.00030684,2]
[311584865,1705254667120,-500.0,0.00030684,2]
[311584866,1705254667129,-500.0,0.00030684,2]
[311584867,1705254667138,-500.0,0.00030684,2]
[311584868,1705254667149,-833.62,0.00030684,2]
[311584869,1705254667159,-500.0,0.00030684,2]
[311584870,1705254667168,-500.0,0.00030684,2]
[311584871,1705254667192,-500.0,0.00030684,2]